[Event "23rd Hoogeveen Open 2019"]
[Site "Hoogeveen"]
[Date "2019.10.21"]
[Round "4.36"]
[White "Merkon, Oseb"]
[Black "Boersma, Jan"]
[Result "0-1"]
[ECO "A16"]
[WhiteElo "1930"]
[BlackElo "2070"]
[Annotator "NA"]
[PlyCount "96"]
[EventDate "2019.10.19"]
[EventType "swiss"]
[EventCountry "NED"]
[SourceTitle "playchess.com"]
[Source "ChessBase"]
[SourceQuality "1"]
[TimeControl "40/5400+30:1800+30"]

1. c4 {[%emt 0:00:00]} g6 {[%emt 0:00:00]} 2. Nc3 {[%emt 0:00:30]} Bg7 {[%emt 0:00:30]} 3. g3 {[%emt 0:00:30]} d6 {[%emt 0:00:30]} 4. Bg2 {[%emt 0:00:30]} Nc6 {[%emt 0:00:30]} 5. d3 {[%emt 0:00:30]} Nf6 {[%emt 0:00:30]} 6. e4 {[%emt 0:00:30]} O-O {[%emt 0:00:30]} 7. Nge2 {[%emt 0:00:30]} Bd7 {[%emt 0:00:30]} 8. O-O {[%emt 0:00:30]} Qc8 {[%emt 0:00:30]} 9. f4 {[%emt 0:00:30]} Bh3 {[%emt 0:00:30]} 10. f5 {[%emt 0:00:30]} Bxg2 {[%emt 0:00:30]} 11. Kxg2 {[%emt 0:00:30]} e6 {[%emt 0:00:30]} 12. Nf4 {[%emt 0:00:30]} Nd4 {[%emt 0:23:44]} 13. Be3 {[%emt 0:27:41]} c5 {[%emt 0:00:30]} 14. g4 {[%emt 0:00:30]} gxf5 {[%emt 0:00:30]} 15. exf5 {[%emt 0:00:30]} Qc6+ {[%emt 0:00:30]} 16. Kg3 {[%emt 0:00:30]} Kh8 {[%emt 0:00:30]} 17. Bxd4 {[%emt 0:00:30]} cxd4 {[%emt 0:00:30]} 18. Nb5 {[%emt 0:00:30]} e5 {[%emt 0:00:30]} 19. Nh3 {[%emt 0:00:30]} Rg8 {[%emt 0:00:30]} 20. Ng5 {[%emt 0:00:30]} Raf8 {[%emt 0:00:30]} 21. Qf3 {[%emt 0:00:30]} Bh6 {[%emt 0:00:30]} 22. h4 {[%emt 0:00:30]} Bxg5 {[%emt 0:00:30]} 23. hxg5 {[%emt 0:00:30]} Rxg5 {[%emt 0:00:30]} 24. Qxc6 {[%emt 0:00:30]} Rxg4+ {[%emt 0:00:30]} 25. Kf2 {[%emt 0:00:30]} bxc6 {[%emt 0:00:30]} 26. Nxd6 {[%emt 0:00:30]} Kg7 {[%emt 0:00:30]} 27. Rg1 {[%emt 0:00:30]} h5 {[%emt 0:00:30]} 28. Rxg4+ {[%emt 0:00:30]} hxg4 {[%emt 0:00:30]} 29. Rh1 {[%emt 0:00:30]} c5 {[%emt 0:00:30]} 30. Ne4 {[%emt 0:00:30]} Nxe4+ {[%emt 0:00:30]} 31. dxe4 {[%emt 0:00:30]} Rb8 {[%emt 0:00:30]} 32. b3 {[%emt 0:00:30]} a5 {[%emt 0:00:30]} 33. Rh4 {[%emt 0:00:30]} a4 {[%emt 0:00:30]} 34. Rxg4+ {[%emt 0:00:30]} Kf6 {[%emt 0:00:30]} 35. Rg3 {[%emt 0:00:30]} a3 {[%emt 0:00:30]} 36. Rh3 {[%emt 0:00:30]} Rg8 {[%emt 0:00:30]} 37. Rh4 {[%emt 0:00:30]} Kg5 {[%emt 0:00:30]} 38. Rh7 {[%emt 0:00:30]} Kf4 {[%emt 0:00:30]} 39. Rh4+ {[%emt 0:00:30]} Rg4 {[%emt 0:00:30]} 40. Rxg4+ {[%emt 0:00:30]} Kxg4 {[%emt 0:00:30]} 41. Ke2 {[%emt 0:30:30]} Kf4 {[%emt 0:30:30]} 42. Kd3 {[%emt 0:00:30]} f6 {[%emt 0:00:30]} 43. b4 {[%emt 0:00:30]} cxb4 {[%emt 0:00:30]} 44. c5 {[%emt 0:00:30]} b3 {[%emt 0:00:30]} 45. c6 {[%emt 0:00:30]} bxa2 {[%emt 0:00:30]} 46. c7 {[%emt 0:00:30]} a1=Q {[%emt 0:00:30]} 47. c8=Q {[%emt 0:00:30]} Qd1+ {[%emt 0:00:30]} 48. Kc4 {[%emt 0:00:30]} Qc2+ {[%emt 0:26:34] Kd3 Qd1+ Kc4 Qc2+} 0-1

[Event "23rd Hoogeveen Open 2019"]
[Site "Hoogeveen"]
[Date "2019.10.22"]
[Round "5.15"]
[White "Okkes, Menno"]
[Black "Van Dorp, Folke"]
[Result "1-0"]
[ECO "E99"]
[WhiteElo "2326"]
[BlackElo "2086"]
[Annotator "RC"]
[PlyCount "83"]
[EventDate "2019.10.19"]
[EventType "swiss"]
[EventCountry "NED"]
[SourceTitle "playchess.com"]
[Source "ChessBase"]
[SourceQuality "1"]
[TimeControl "40/5400+30:1800+30"]

1. Nf3 {[%emt 0:00:00]} Nf6 {[%emt 0:00:00]} 2. c4 {[%emt 0:00:00]} g6 {[%emt 0:00:05]} 3. Nc3 {[%emt 0:00:00]} Bg7 {[%emt 0:00:05]} 4. e4 {[%emt 0:00:02]} d6 {[%emt 0:00:03]} 5. d4 {[%emt 0:00:04]} O-O {[%emt 0:00:04]} 6. Be2 {[%emt 0:00:03]} e5 {[%emt 0:00:23]} 7. O-O {[%emt 0:00:08]} Nc6 {[%emt 0:00:04]} 8. d5 {[%emt 0:00:05]} Ne7 {[%emt 0:00:05]} 9. Ne1 {[%emt 0:00:09]} Nd7 {[%emt 0:00:08]} 10. Nd3 {[%emt 0:00:08]} f5 {[%emt 0:00:17]} 11. f3 {[%emt 0:00:05]} f4 {[%emt 0:06:16]} 12. Bd2 {[%emt 0:00:09]} g5 {[%emt 0:00:26]} 13. Rc1 {[%emt 0:00:06]} Nf6 {[%emt 0:01:03]} 14. c5 {[%emt 0:00:17]} Ng6 {[%emt 0:00:16]} 15. Nb5 {[%emt 0:00:31]} Rf7 {[%emt 0:00:29]} 16. Ba5 {[%emt 0:00:32]} b6 {[%emt 0:07:00]} 17. cxd6 {[%emt 0:00:14]} cxd6 {[%emt 0:00:30]} 18. Be1 {[%emt 0:00:12]} h5 {[%emt 0:01:28]} 19. Qc2 {[%emt 0:19:02]} Ne8 {[%emt 0:06:53]} 20. Nb4 {[%emt 0:11:14]} g4 {[%emt 0:02:27]} 21. Nc6 {[%emt 0:01:21]} Qg5 {[%emt 0:02:11]} 22. Ncxa7 {[%emt 0:05:52]} gxf3 {[%emt 0:00:46]} 23. Bxf3 {[%emt 0:01:04]} Bd7 {[%emt 0:08:52]} 24. Nc6 {[%emt 0:02:36]} Bf8 {[%emt 0:01:35]} 25. Qf2 {[%emt 0:02:09]} Rxa2 {[%emt 0:08:09]} 26. Na3 {[%emt 0:04:11]} Rg7 {[%emt 0:06:14]} 27. Qxb6 {[%emt 0:07:22]} Nf6 {[%emt 0:03:35]} 28. Qb3 {[%emt 0:01:26]} Rxa3 {[%emt 0:02:44]} 29. bxa3 {[%emt 0:00:08]} Ng4 {[%emt 0:03:17]} 30. Nb8 {[%emt 0:19:47]} Nh4 {[%emt 0:08:14]} 31. Nxd7 {[%emt 0:01:11]} Nxg2 {[%emt 0:01:41]} 32. Nxf8 {[%emt 0:11:29]} Nxe1 {[%emt 0:02:24]} 33. Ne6 {[%emt 0:00:24]} Qh4 {[%emt 0:00:12]} 34. Qb8+ {[%emt 0:02:52]} Kh7 {[%emt 0:01:03]} 35. Nf8+ {[%emt 0:00:06]} Kh6 {[%emt 0:00:41]} 36. Qxd6+ {[%emt 0:00:07]} Nf6+ {[%emt 0:00:56]} 37. Kh1 {[%emt 0:00:38]} Nxf3 {[%emt 0:04:41]} 38. Rxf3 {[%emt 0:00:11]} Qg5 {[%emt 0:00:17]} 39. Rf2 {[%emt 0:01:00]} f3 {[%emt 0:00:26]} 40. Rcf1 {[%emt 0:01:39]} Rg6 {[%emt 0:00:09]} 41. Nxg6 {[%emt 0:31:31]} Nxe4 {[%emt 0:30:35]} 42. Qf8+ {[%emt 0:01:40]} 1-0

[Event "23rd Hoogeveen Open 2019"]
[Site "Hoogeveen"]
[Date "2019.10.22"]
[Round "5.18"]
[White "Grooten, Herman"]
[Black "Stock, Andreas"]
[Result "1-0"]
[ECO "A57"]
[WhiteElo "2274"]
[BlackElo "2076"]
[Annotator "RC"]
[PlyCount "99"]
[EventDate "2019.10.19"]
[EventType "swiss"]
[EventCountry "NED"]
[SourceTitle "playchess.com"]
[Source "ChessBase"]
[SourceQuality "1"]
[TimeControl "40/5400+30:1800+30"]

1. d4 {[%emt 0:02:32]} Nf6 {[%emt 0:00:00]} 2. c4 {[%emt 0:00:07]} c5 {[%emt 0:00:00]} 3. d5 {[%emt 0:00:08]} b5 {[%emt 0:00:00]} 4. Nf3 {[%emt 0:00:23]} g6 {[%emt 0:04:09]} 5. cxb5 {[%emt 0:00:24]} a6 {[%emt 0:02:45]} 6. b6 {[%emt 0:00:30]} d6 {[%emt 0:00:49]} 7. Nc3 {[%emt 0:00:10]} Bg7 {[%emt 0:02:12]} 8. e4 {[%emt 0:00:29]} O-O {[%emt 0:05:57]} 9. h3 {[%emt 0:01:32]} Nbd7 10. Bf4 {[%emt 0:05:12]} Qxb6 {[%emt 0:04:17]} 11. Rb1 {[%emt 0:02:32]} a5 {[%emt 0:13:10]} 12. Bc4 {[%emt 0:12:47]} Ba6 {[%emt 0:07:04]} 13. b3 {[%emt 0:06:04]} Ne8 {[%emt 0:10:09]} 14. Bd2 {[%emt 0:07:47]} Nc7 {[%emt 0:05:59]} 15. a4 {[%emt 0:02:43]} Rfb8 {[%emt 0:06:24]} 16. O-O {[%emt 0:01:55]} Qa7 {[%emt 0:02:46]} 17. Qc2 {[%emt 0:01:00]} Nb6 {[%emt 0:07:34]} 18. Ne2 {[%emt 0:04:13]} Bxc4 {[%emt 0:06:41]} 19. bxc4 {[%emt 0:00:07]} Qa6 {[%emt 0:01:08]} 20. Rfc1 {[%emt 0:02:52]} Nd7 {[%emt 0:03:53]} 21. h4 {[%emt 0:05:47]} Rxb1 {[%emt 0:02:16]} 22. Rxb1 {[%emt 0:00:07]} Nb6 {[%emt 0:00:15]} 23. Rc1 {[%emt 0:02:23]} Nd7 {[%emt 0:00:27]} 24. Qd3 {[%emt 0:04:42]} Rb8 {[%emt 0:00:32]} 25. Bc3 {[%emt 0:03:22]} Bxc3 {[%emt 0:04:03]} 26. Nxc3 {[%emt 0:00:34]} Rb4 {[%emt 0:00:26]} 27. Nb5 {[%emt 0:07:39]} Nxb5 {[%emt 0:00:23]} 28. cxb5 {[%emt 0:02:37]} Qc8 {[%emt 0:01:45]} 29. Nd4 {[%emt 0:04:51]} Ne5 {[%emt 0:02:59]} 30. Qd1 {[%emt 0:00:20]} Kg7 {[%emt 0:02:06]} 31. f3 {[%emt 0:01:57]} h5 {[%emt 0:01:35]} 32. Nc6 {[%emt 0:01:09]} Nxc6 {[%emt 0:00:56]} 33. dxc6 {[%emt 0:00:08]} Qc7 {[%emt 0:00:32]} 34. Qc2 {[%emt 0:02:56]} Qb6 {[%emt 0:00:26]} 35. Rd1 {[%emt 0:00:54]} f6 {[%emt 0:00:39]} 36. Kh2 {[%emt 0:01:06]} Qc7 {[%emt 0:00:35]} 37. Rd5 {[%emt 0:01:08]} Qc8 {[%emt 0:00:19]} 38. g3 {[%emt 0:01:30]} Qe6 {[%emt 0:00:29]} 39. Rd2 {[%emt 0:00:33]} Qc8 {[%emt 0:01:01]} 40. Rg2 {[%emt 0:00:39]} Qe6 {[%emt 0:00:19]} 41. Qa2 {[%emt 0:32:45]} Qc8 {[%emt 0:32:56]} 42. g4 {[%emt 0:00:38]} hxg4 {[%emt 0:00:19]} 43. Rxg4 {[%emt 0:00:16]} f5 {[%emt 0:00:00]} 44. Rg5 {[%emt 0:00:00]} fxe4 {[%emt 0:00:00]} 45. h5 {[%emt 0:00:00]} c4 {[%emt 0:00:00]} 46. Rxg6+ {[%emt 0:00:00]} Kh7 {[%emt 0:00:00]} 47. Qd2 {[%emt 0:00:00]} Qf8 {[%emt 0:00:00]} 48. Qh6+ {[%emt 0:00:00]} Qxh6 {[%emt 0:00:00]} 49. Rxh6+ {[%emt 0:00:00]} Kxh6 {[%emt 0:00:00]} 50. c7 {[%emt 0:00:00]} 1-0

[Event "23rd Hoogeveen Open 2019"]
[Site "Hoogeveen"]
[Date "2019.10.22"]
[Round "5.19"]
[White "Advait, Bagri"]
[Black "Barthel, Ansgar"]
[Result "0-1"]
[ECO "C41"]
[WhiteElo "2231"]
[BlackElo "2037"]
[Annotator "RC"]
[PlyCount "114"]
[EventDate "2019.10.19"]
[EventType "swiss"]
[EventCountry "NED"]
[SourceTitle "playchess.com"]
[Source "ChessBase"]
[SourceQuality "1"]
[TimeControl "40/5400+30:1800+30"]

1. e4 {[%emt 0:07:40]} d6 {[%emt 0:00:00]} 2. d4 {[%emt 0:00:17]} Nf6 {[%emt 0:00:00]} 3. Nc3 {[%emt 0:00:08]} e5 {[%emt 0:00:00]} 4. Nf3 {[%emt 0:00:54]} Nbd7 {[%emt 0:00:00]} 5. Bc4 {[%emt 0:02:48]} Be7 {[%emt 0:00:00]} 6. O-O {[%emt 0:00:20]} O-O {[%emt 0:00:05]} 7. a4 {[%emt 0:01:33]} c6 {[%emt 0:00:28]} 8. a5 {[%emt 0:07:06]} Qc7 {[%emt 0:03:50]} 9. Re1 h6 {[%emt 0:09:10]} 10. h3 {[%emt 0:06:02]} Re8 {[%emt 0:01:15]} 11. d5 {[%emt 0:16:40]} cxd5 {[%emt 0:10:19]} 12. Bxd5 {[%emt 0:00:17]} Nxd5 {[%emt 0:04:54]} 13. Nxd5 {[%emt 0:00:17]} Qd8 {[%emt 0:00:08]} 14. c4 {[%emt 0:08:07]} Nf6 {[%emt 0:00:57]} 15. Nxf6+ {[%emt 0:04:09]} Bxf6 {[%emt 0:00:06]} 16. b3 {[%emt 0:00:36]} Be6 {[%emt 0:01:11]} 17. Bd2 {[%emt 0:02:52]} Qc7 {[%emt 0:01:48]} 18. Bb4 {[%emt 0:02:43]} Be7 {[%emt 0:01:10]} 19. Nd2 {[%emt 0:00:37]} Red8 {[%emt 0:08:53]} 20. Nb1 {[%emt 0:02:15]} Qc6 {[%emt 0:03:39]} 21. Nc3 {[%emt 0:00:55]} Bf8 {[%emt 0:00:30]} 22. Qe2 {[%emt 0:04:21]} Rd7 {[%emt 0:03:46]} 23. Rad1 {[%emt 0:00:43]} Rad8 {[%emt 0:00:53]} 24. Nb5 {[%emt 0:03:17]} a6 {[%emt 0:01:55]} 25. Nc3 {[%emt 0:01:48]} f5 {[%emt 0:01:18]} 26. exf5 {[%emt 0:04:41]} Bxf5 {[%emt 0:00:07]} 27. Nd5 {[%emt 0:00:16]} Rf7 {[%emt 0:03:41]} 28. f4 {[%emt 0:04:21]} exf4 {[%emt 0:01:39]} 29. Nxf4 {[%emt 0:00:24]} Re7 {[%emt 0:11:11]} 30. Qd2 {[%emt 0:01:36]} Rxe1+ {[%emt 0:01:34]} 31. Rxe1 {[%emt 0:00:09]} b6 {[%emt 0:24:06]} 32. Qd5+ {[%emt 0:05:39]} Qxd5 {[%emt 0:00:07]} 33. Nxd5 {[%emt 0:00:06]} bxa5 {[%emt 0:00:23]} 34. Bxa5 {[%emt 0:00:09]} Rb8 {[%emt 0:01:31]} 35. Re3 {[%emt 0:01:21]} Bc2 {[%emt 0:03:12]} 36. b4 {[%emt 0:00:21]} Rc8 {[%emt 0:00:52]} 37. Nb6 {[%emt 0:03:06]} Rb8 {[%emt 0:01:47]} 38. Nd5 {[%emt 0:04:08]} Rc8 {[%emt 0:00:19]} 39. Nc7 {[%emt 0:00:43]} d5 {[%emt 0:01:37]} 40. Rc3 {[%emt 0:02:15]} Be4 {[%emt 0:00:22]} 41. c5 {[%emt 0:30:32]} Be7 {[%emt 0:02:27]} 42. Nxa6 {[%emt 0:00:00]} Bf6 {[%emt 0:00:27]} 43. Rc1 {[%emt 0:00:00]} Bd4+ {[%emt 0:01:09]} 44. Kh1 {[%emt 0:00:00]} Rf8 {[%emt 0:19:53]} 45. b5 {[%emt 0:00:00]} Rf2 {[%emt 0:02:15]} 46. Rg1 {[%emt 0:00:00]} Rb2 {[%emt 0:03:47]} 47. b6 {[%emt 0:04:34]} Bxg1 {[%emt 0:01:26]} 48. Kxg1 {[%emt 0:00:07]} d4 {[%emt 0:00:15]} 49. Nb8 {[%emt 0:00:49]} Rb5 {[%emt 0:00:58]} 50. c6 {[%emt 0:00:54]} Rxa5 {[%emt 0:01:52]} 51. b7 {[%emt 0:00:06]} Rb5 {[%emt 0:00:08]} 52. Nd7 {[%emt 0:01:22]} Bxc6 {[%emt 0:00:39]} 53. b8=Q+ {[%emt 0:00:11]} Rxb8 {[%emt 0:00:07]} 54. Nxb8 {[%emt 0:00:04]} Bb5 {[%emt 0:00:32]} 55. Kf2 {[%emt 0:00:20]} Kf8 {[%emt 0:00:07]} 56. Kf3 {[%emt 0:00:04]} Ke8 {[%emt 0:00:25]} 57. Ke4 {[%emt 0:00:05]} d3 {[%emt 0:00:13]} 0-1

[Event "23rd Hoogeveen Open 2019"]
[Site "Hoogeveen"]
[Date "2019.10.22"]
[Round "5.24"]
[White "De Jong, Migchiel"]
[Black "Ypma, Jord"]
[Result "1-0"]
[ECO "B87"]
[WhiteElo "2330"]
[BlackElo "2013"]
[Annotator "RC"]
[PlyCount "73"]
[EventDate "2019.10.19"]
[EventType "swiss"]
[EventCountry "NED"]
[SourceTitle "playchess.com"]
[Source "ChessBase"]
[SourceQuality "1"]
[TimeControl "40/5400+30:1800+30"]

1. e4 {[%emt 0:00:00]} c5 {[%emt 0:00:00]} 2. Nf3 {[%emt 0:00:00]} d6 {[%emt 0:00:07]} 3. d4 {[%emt 0:00:15]} cxd4 {[%emt 0:00:36]} 4. Nxd4 {[%emt 0:00:05]} Nf6 {[%emt 0:00:15]} 5. Nc3 {[%emt 0:00:07]} a6 {[%emt 0:00:17]} 6. Bc4 {[%emt 0:00:43]} e6 {[%emt 0:00:25]} 7. O-O {[%emt 0:00:33]} b5 {[%emt 0:00:16]} 8. Bb3 {[%emt 0:00:19]} Be7 {[%emt 0:00:22]} 9. Qf3 {[%emt 0:00:37]} Qc7 {[%emt 0:01:16]} 10. Qg3 {[%emt 0:00:30]} O-O {[%emt 0:00:23]} 11. Bh6 {[%emt 0:00:15]} Ne8 {[%emt 0:00:25]} 12. Rad1 {[%emt 0:01:12]} Bd7 {[%emt 0:03:00]} 13. Nce2 {[%emt 0:02:17]} Kh8 {[%emt 0:07:11]} 14. Bg5 {[%emt 0:00:10]} Nf6 {[%emt 0:05:04]} 15. Qh4 {[%emt 0:03:16]} Nc6 {[%emt 0:07:56]} 16. Nxc6 {[%emt 0:28:59]} Qxc6 {[%emt 0:06:24]} 17. Nd4 {[%emt 0:01:46]} Qb6 {[%emt 0:02:43]} 18. Rd3 {[%emt 0:01:41]} Rfc8 {[%emt 0:01:39]} 19. Rh3 {[%emt 0:05:48]} Kg8 {[%emt 0:02:36]} 20. Nf3 {[%emt 0:01:47]} Qc5 {[%emt 0:12:12]} 21. Re1 {[%emt 0:02:51]} Kf8 {[%emt 0:10:09]} 22. e5 {[%emt 0:00:30]} dxe5 {[%emt 0:00:24]} 23. Nxe5 {[%emt 0:00:27]} Be8 {[%emt 0:00:22]} 24. Nd3 {[%emt 0:05:57]} Qc7 {[%emt 0:05:48]} 25. Nf4 {[%emt 0:01:21]} Rd8 {[%emt 0:07:20]} 26. c3 {[%emt 0:04:50]} Bc6 {[%emt 0:15:14]} 27. Bxe6 {[%emt 0:01:09]} Be4 {[%emt 0:07:08]} 28. Bb3 {[%emt 0:00:57]} Bf5 {[%emt 0:00:28]} 29. Rhe3 {[%emt 0:02:28]} Re8 {[%emt 0:00:02]} 30. g4 {[%emt 0:01:04]} Be4 {[%emt 0:02:34]} 31. Bxf6 {[%emt 0:02:19]} Bxf6 {[%emt 0:00:43]} 32. g5 {[%emt 0:00:10]} Be5 {[%emt 0:00:53]} 33. Rxe4 {[%emt 0:00:30]} Bxf4 {[%emt 0:01:02]} 34. Qxh7 {[%emt 0:00:18]} Re5 {[%emt 0:01:06]} 35. Qh8+ {[%emt 0:00:49]} Ke7 {[%emt 0:00:05]} 36. Qxa8 {[%emt 0:00:07]} Bxh2+ {[%emt 0:00:08]} 37. Kg2 {[%emt 0:00:46]} 1-0

[Event "23rd Hoogeveen Open 2019"]
[Site "Hoogeveen"]
[Date "2019.10.22"]
[Round "5.27"]
[White "Achuthan, Dylan"]
[Black "Van Foreest, Machteld"]
[Result "0-1"]
[ECO "B50"]
[WhiteElo "1865"]
[BlackElo "2142"]
[Annotator "ChessBase"]
[PlyCount "128"]
[EventDate "2019.10.19"]
[EventType "swiss"]
[EventCountry "NED"]
[SourceTitle "playchess.com"]
[Source "ChessBase"]
[SourceQuality "1"]
[TimeControl "40/5400+30:1800+30"]

1. e4 {[%emt 0:00:00]} c5 {[%emt 0:00:00]} 2. Nf3 {[%emt 0:00:00]} d6 {[%emt 0:00:00]} 3. c3 {[%emt 0:00:00]} Nf6 {[%emt 0:00:00]} 4. Be2 {[%emt 0:00:03]} g6 {[%emt 0:00:00]} 5. O-O {[%emt 0:01:04]} Bg7 {[%emt 0:00:08]} 6. Re1 {[%emt 0:00:46]} e5 {[%emt 0:04:28]} 7. d4 {[%emt 0:11:41]} cxd4 {[%emt 0:10:50]} 8. cxd4 {[%emt 0:00:27]} O-O {[%emt 0:22:58]} 9. Nc3 {[%emt 0:11:03]} Nc6 {[%emt 0:01:26]} 10. dxe5 {[%emt 0:12:34]} dxe5 {[%emt 0:00:32]} 11. Be3 {[%emt 0:12:32]} Be6 {[%emt 0:07:03]} 12. Ng5 {[%emt 0:07:50]} Qxd1 {[%emt 0:06:12]} 13. Raxd1 {[%emt 0:00:48]} Bg4 {[%emt 0:00:23]} 14. f3 {[%emt 0:11:33]} Bd7 {[%emt 0:04:38]} 15. Bc5 {[%emt 0:01:58]} Rfd8 {[%emt 0:01:55]} 16. Bc4 {[%emt 0:01:18]} Be8 {[%emt 0:00:05]} 17. Nd5 {[%emt 0:11:12]} h6 {[%emt 0:08:48]} 18. Nh3 {[%emt 0:00:01]} Rac8 {[%emt 0:01:55]} 19. Bb3 {[%emt 0:09:34]} Nxd5 {[%emt 0:07:50]} 20. Bxd5 {[%emt 0:00:00]} b6 {[%emt 0:01:31]} 21. Be3 {[%emt 0:00:57]} Nb4 {[%emt 0:01:36]} 22. Bb3 {[%emt 0:01:11]} Bb5 {[%emt 0:05:39]} 23. Nf2 {[%emt 0:01:20]} Ba6 {[%emt 0:03:40]} 24. a3 {[%emt 0:00:23]} Rxd1 {[%emt 0:01:08]} 25. Rxd1 {[%emt 0:01:54]} Nc2 {[%emt 0:00:04]} 26. Bxc2 {[%emt 0:01:12]} Rxc2 {[%emt 0:00:02]} 27. Rd2 {[%emt 0:00:11]} Rxd2 {[%emt 0:05:24]} 28. Bxd2 {[%emt 0:00:01]} Be2 {[%emt 0:00:07]} 29. Bc3 {[%emt 0:00:30]} f5 {[%emt 0:00:54]} 30. Nh1 {[%emt 0:02:21]} f4 {[%emt 0:02:03]} 31. Kf2 {[%emt 0:00:22]} Bc4 {[%emt 0:00:28]} 32. b4 {[%emt 0:00:20]} Kf7 {[%emt 0:00:15]} 33. g3 {[%emt 0:00:46]} g5 {[%emt 0:00:04]} 34. Ke1 {[%emt 0:00:15]} Ke6 {[%emt 0:00:19]} 35. Nf2 {[%emt 0:00:26]} Bb5 {[%emt 0:03:53]} 36. Nd1 {[%emt 0:00:36]} h5 {[%emt 0:00:41]} 37. Kf2 {[%emt 0:00:17]} Bf8 {[%emt 0:00:23]} 38. Nb2 {[%emt 0:00:49]} a5 {[%emt 0:00:32]} 39. bxa5 {[%emt 0:00:28]} Bxa3 {[%emt 0:00:03]} 40. axb6 {[%emt 0:00:26]} Bc5+ {[%emt 0:00:09]} 41. Kg2 {[%emt 0:30:30]} Bxb6 {[%emt 0:30:05]} 42. gxf4 {[%emt 0:00:31]} exf4 {[%emt 0:00:00]} 43. h3 {[%emt 0:00:00]} Be2 {[%emt 0:00:00]} 44. Na4 {[%emt 0:00:00]} Ba7 {[%emt 0:00:00]} 45. Be1 {[%emt 0:00:00]} Ke5 {[%emt 0:00:00]} 46. Bf2 {[%emt 0:00:57]} Bxf2 {[%emt 0:00:00]} 47. Kxf2 {[%emt 0:00:00]} Bc4 {[%emt 0:00:00]} 48. Nc5 {[%emt 0:01:35]} Kd6 {[%emt 0:00:00]} 49. Nb7+ {[%emt 0:01:00]} Kc7 {[%emt 0:00:00]} 50. Nc5 {[%emt 0:00:13]} Kc6 {[%emt 0:00:00]} 51. Na4 {[%emt 0:00:02]} Be6 {[%emt 0:00:24]} 52. Kg2 {[%emt 0:00:01]} Kb5 {[%emt 0:00:43]} 53. Nc3+ {[%emt 0:00:07]} Kc4 {[%emt 0:00:06]} 54. Ne2 {[%emt 0:00:14]} Kd3 {[%emt 0:00:05]} 55. Ng1 {[%emt 0:00:33]} Ke3 {[%emt 0:00:14]} 56. Kf1 {[%emt 0:00:30]} Bf7 {[%emt 0:00:36]} 57. Kg2 {[%emt 0:02:09]} Bc4 {[%emt 0:00:04]} 58. Kh2 {[%emt 0:00:53]} Kf2 {[%emt 0:00:22]} 59. Kh1 {[%emt 0:00:13]} Kg3 {[%emt 0:01:17]} 60. e5 {[%emt 0:00:34]} Bf1 {[%emt 0:00:08]} 61. Ne2+ {[%emt 0:00:31]} Bxe2 {[%emt 0:00:04]} 62. e6 {[%emt 0:00:03]} Bxf3+ {[%emt 0:00:08]} 63. Kg1 {[%emt 0:00:04]} Bc6 {[%emt 0:00:06]} 64. e7 {[%emt 0:00:02]} f3 {[%emt 0:00:02]} 0-1

[Event "23rd Hoogeveen Open 2019"]
[Site "Hoogeveen"]
[Date "2019.10.22"]
[Round "5.28"]
[White "Pekin, Tolgay"]
[Black "Albers, Sasa"]
[Result "1-0"]
[ECO "B12"]
[WhiteElo "2083"]
[BlackElo "1975"]
[Annotator "NA"]
[PlyCount "69"]
[EventDate "2019.10.19"]
[EventType "swiss"]
[EventCountry "NED"]
[SourceTitle "playchess.com"]
[Source "ChessBase"]
[SourceQuality "1"]
[TimeControl "40/5400+30:1800+30"]

1. e4 {[%emt 0:00:00]} c6 {[%emt 0:00:00]} 2. d4 {[%emt 0:00:01]} d5 {[%emt 0:00:00]} 3. e5 {[%emt 0:00:23]} c5 {[%emt 0:00:00]} 4. dxc5 {[%emt 0:00:39]} e6 {[%emt 0:00:00]} 5. a3 {[%emt 0:00:12]} (5. Bd3 Bxc5 6. Qg4 Ne7 7. b4 h5 8. Qf4 Bb6 9. Nf3 Nbc6 10. Nbd2 a5 11. b5 Nb4 12. Ba3 Nxd3+ 13. cxd3 {1-0 (25) Dominguez Perez,L (2760)-Nepomniachtchi,I (2775) Dortmund 2019}) 5... Bxc5 {[%emt 0:00:00]} 6. Nf3 {[%emt 0:00:27] B12: Caro-Kann: Advance Variation} Nd7 {[%emt 0:00:16]} 7. b4 {[%emt 0:00:44]} Be7 {[%emt 0:00:02]} 8. Bb2 $146 {[%emt 0:00:20]} ({Predecessor:} 8. Bd3 a5 9. b5 f6 10. Bb2 fxe5 11. Nxe5 Nxe5 12. Bxe5 Nf6 {½-½ (64) Forcen Esteban,D (2541)-Epishin,V (2536) Roquetas de Mar 2018}) 8... Nh6 {[%emt 0:00:02]} 9. Bd3 {[%emt 0:00:24]} a5 {[%emt 0:00:05]} 10. b5 {[%emt 0:01:41]} O-O {[%emt 0:01:03]} 11. O-O {[%emt 0:01:22]} Qc7 {[%emt 0:03:41]} 12. Qe2 {[%emt 0:01:44]} Nc5 {[%emt 0:01:14]} 13. Nbd2 {[%emt 0:00:53]} Nxd3 {[%emt 0:05:11]} 14. cxd3 {[%emt 0:04:40]} Nf5 {[%emt 0:00:33]} 15. Rfc1 {[%emt 0:05:41]} Qb6 {[%emt 0:00:35]} 16. a4 {[%emt 0:02:49]} Bd7 {[%emt 0:00:05]} 17. g4 {[%emt 0:03:07]} Nh6 {[%emt 0:16:35]} 18. Bd4 {[%emt 0:09:11]} Qd8 {[%emt 0:00:06]} 19. h3 {[%emt 0:00:45]} f5 {[%emt 0:09:18]} 20. exf6 {[%emt 0:04:25]} Bxf6 {[%emt 0:00:09]} 21. Ne5 {[%emt 0:03:44]} Nf7 {[%emt 0:01:58]} 22. Ndf3 {[%emt 0:04:15]} Nxe5 {[%emt 0:01:20]} 23. Bxe5 {[%emt 0:00:47]} Rc8 {[%emt 0:02:07]} 24. Qe3 {[%emt 0:01:48]} Qe7 {[%emt 0:19:17]} 25. Kg2 {[%emt 0:04:06]} Qf7 {[%emt 0:09:39]} 26. Rxc8 {[%emt 0:02:14]} Bxc8 {[%emt 0:03:46]} (26... Rxc8 $16 27. Rc1 Rxc1 28. Qxc1 h5) 27. Rc1 {[%emt 0:00:22]} Bxe5 {[%emt 0:00:36]} 28. Nxe5 {[%emt 0:00:14]} Qe7 {[%emt 0:00:33]} 29. b6 {[%emt 0:05:51]} Qf6 {[%emt 0:06:47]} 30. Rc7 {[%emt 0:00:33]} h6 {[%emt 0:01:54]} 31. f3 $18 {[%emt 0:01:05]} Kh8 {[%emt 0:02:03]} 32. d4 {[%emt 0:00:25]} Kg8 {[%emt 0:00:06]} 33. Qc1 {[%emt 0:00:09]} Qd8 {[%emt 0:00:50]} 34. Ng6 {[%emt 0:00:18]} Re8 {[%emt 0:00:27]} 35. Rxc8 {[%emt 0:00:22]} 1-0